fUST/lending_fUST_20250705
["ID","MTS","AMOUNT","RATE_DAILY","PERIOD"]
[369657548,1751682046134,-162.95056784,0.00019177,2]
[369657549,1751682046154,-460.48362628,0.00019178,2]
[369657550,1751682046174,-462.45009223,0.00019178,2]
[369657551,1751682046196,-404.98520713,0.00019178,2]
[369657552,1751682046215,-460.0,0.00019178,2]
[369657553,1751682046234,-460.0,0.00019178,2]
[369657554,1751682046255,-255.85575748,0.00019178,2]
[369657555,1751682046276,-460.0,0.00019178,2]
[369657556,1751682046297,-460.0,0.00019178,2]
[369657557,1751682046317,-460.81644162,0.00019178,2]
[369657558,1751682046338,-460.68110738,0.00019178,2]
[369657559,1751682046359,-460.0,0.00019178,2]
[369657560,1751682046387,-460.0,0.00019178,2]
[369657561,1751682046408,-462.38885723,0.00019178,2]
[369657562,1751682046429,-460.0,0.00019178,2]
[369657563,1751682046449,-608.02882809,0.00019178,2]
[369657564,1751682046468,-460.0,0.00019178,2]
[369657565,1751682046490,-460.0,0.00019178,2]
[369657566,1751682046510,-460.0,0.00019178,2]
[369657567,1751682046530,-423.15014132,0.00019178,2]
[369657568,1751682046551,-460.0,0.00019178,2]
[369657569,1751682046572,-395.15041774,0.00019178,2]
[369657570,1751682046593,-460.0,0.00019178,2]
[369657571,1751682046614,-383.68584396,0.00019178,2]
[369657572,1751682046638,-460.0,0.00019178,2]
[369657573,1751682046658,-1000.0,0.00019178,2]
[369657574,1751682046679,-542.85879155,0.00019178,2]
[369657575,1751682046700,-335.17901996,0.00019178,2]
[369657576,1751682046721,-460.0,0.00019178,2]
[369657577,1751682046744,-460.0,0.00019178,2]
[369657578,1751682046766,-465.35265782,0.00019178,2]
[369657579,1751682046786,-443.95043516,0.00019178,2]
[369657580,1751682046805,-460.0,0.00019178,2]
[369657581,1751682046825,-199.38945587,0.00019178,2]
[369657582,1751682046845,-461.40515953,0.00019178,2]
[369657583,1751682046866,-603.66,0.00019178,2]
[369657584,1751682046886,-521.87362359,0.00019178,2]
[369657585,1751682046907,-464.82737924,0.00019178,2]
[369657586,1751682046927,-542.24,0.00019178,2]
[369657587,1751682046948,-366.90695406,0.00019178,2]
[369657588,1751682046969,-460.0,0.00019178,2]
[369657589,1751682046989,-460.0,0.00019178,2]
[369657590,1751682047012,-229.55426922,0.00019178,2]
[369657591,1751682047031,-460.0,0.00019178,2]
[369657592,1751682047053,-460.0,0.00019178,2]
[369657593,1751682047074,-460.0,0.00019178,2]
[369657594,1751682047095,-460.0,0.00019178,2]
[369657595,1751682047116,-460.0,0.00019178,2]
[369657596,1751682047141,-460.0,0.00019178,2]
[369657597,1751682047162,-460.0,0.00019178,2]
[369657598,1751682047184,-460.0,0.00019178,2]
[369657599,1751682047206,-460.0,0.00019178,2]
[369657600,1751682047227,-524.16774181,0.00019178,2]
[369657601,1751682047249,-460.0,0.00019178,2]
[369657602,1751682047269,-254.04249007,0.00019178,2]
[369657603,1751682047290,-460.0,0.00019178,2]
[369657604,1751682047311,-460.0,0.00019178,2]
[369657605,1751682047332,-489.07,0.00019178,2]
[369657606,1751682047353,-460.0,0.00019178,2]
[369657607,1751682047376,-471.73677759,0.00019178,2]
[369657608,1751682047397,-460.0,0.00019178,2]
[369657609,1751682047420,-460.0,0.00019178,2]
[369657610,1751682047442,-460.0,0.00019178,2]
[369657611,1751682047463,-460.0,0.00019178,2]
[369657612,1751682047485,-460.0,0.00019178,2]
[369657613,1751682047507,-460.0,0.00019178,2]
[369657614,1751682047530,-460.0,0.00019178,2]
[369657615,1751682047550,-506.39,0.00019178,2]
[369657616,1751682047573,-329.41638841,0.00019178,2]
[369657617,1751682047594,-460.0,0.00019178,2]
[369657618,1751682047614,-460.0,0.00019178,2]
[369657619,1751682047634,-500.0,0.00019178,2]
[369657620,1751682047654,-31962.45019634,0.00019178,2]
[369657637,1751682401119,-185.54999341,0.00019016,2]
[369657647,1751682517262,-158.64697996,0.00016209,2]
[369657648,1751682520626,-178.0,0.00016209,2]
[369657649,1751682522956,-160.0,0.00016209,2]
[369657650,1751682525153,-233.27316975,0.00016209,2]
[369657651,1751682527333,-165.23468313,0.00016209,2]
[369657653,1751682533801,-178.36585624,0.00016209,2]
[369657654,1751682535374,-231.84616984,0.00016209,2]
[369657693,1751682633360,-255.57243791,0.00016208,2]
[369657694,1751682633373,-44.42756209,0.00016208,2]
[369657695,1751682633383,-300.0,0.00016208,2]
[369657696,1751682633394,-300.0,0.00016208,2]
[369657697,1751682633404,-1200.0,0.00016208,2]
[369657698,1751682633413,-59030.51409783,0.00016209,2]
[369657699,1751682633424,-77293.50931741,0.00016209,2]
[369657700,1751682633440,-2144.6893901,0.00016209,2]
[369657706,1751682638848,-340.46143247,0.00016208,2]
[369657707,1751682638860,-199.61144836,0.00016208,2]
[369657708,1751682638870,-165.88609294,0.00016208,2]
[369657709,1751682638880,-500.0,0.00016208,2]
[369657710,1751682638889,-500.0,0.00016208,2]
[369657711,1751682638899,-588.2775474,0.00016208,2]
[369657712,1751682638908,-253.78431214,0.00016208,2]
[369657713,1751682638920,-246.21568786,0.00016208,2]
[369657714,1751682638930,-20.22912454,0.00016208,2]
[369657715,1751682638941,-479.77087546,0.00016208,2]
[369657716,1751682638950,-500.0,0.00016208,2]
[369657717,1751682638959,-500.0,0.00016208,2]
[369657718,1751682638968,-500.0,0.00016208,2]
[369657719,1751682638977,-502.40031963,0.00016208,2]
[369657720,1751682638986,-500.0,0.00016208,2]
[369657721,1751682638995,-306.56912138,0.00016208,2]
[369657722,1751682639011,-193.43087862,0.00016208,2]
[369657723,1751682639020,-500.0,0.00016208,2]
[369657724,1751682639029,-500.0,0.00016208,2]
[369657725,1751682639038,-500.0,0.00016208,2]
[369657726,1751682639047,-500.0,0.00016208,2]
[369657727,1751682639056,-500.0,0.00016208,2]
[369657728,1751682639065,-500.0,0.00016208,2]
[369657729,1751682639074,-500.0,0.00016208,2]
[369657730,1751682639083,-500.0,0.00016208,2]
[369657731,1751682639092,-79.58671366,0.00016208,2]
[369657732,1751682639104,-420.41328634,0.00016208,2]
[369657733,1751682639113,-500.0,0.00016208,2]
[369657734,1751682639122,-500.0,0.00016208,2]
[369657735,1751682639131,-500.0,0.00016208,2]
[369657736,1751682639140,-593.42067002,0.00016208,2]
[369657737,1751682639149,-500.0,0.00016208,2]
[369657738,1751682639158,-500.0,0.00016208,2]
[369657739,1751682639167,-500.0,0.00016208,2]
[369657740,1751682639176,-500.0,0.00016208,2]
[369657741,1751682639185,-273.03070788,0.00016208,2]
[369657742,1751682639194,-450.0,0.00016208,2]
[369657743,1751682639203,-500.0,0.00016208,2]
[369657744,1751682639212,-500.0,0.00016208,2]
[369657745,1751682639221,-500.0,0.00016208,2]
[369657746,1751682639230,-500.0,0.00016208,2]
[369657747,1751682639239,-500.0,0.00016208,2]
[369657748,1751682639248,-500.0,0.00016208,2]
[369657749,1751682639257,-500.0,0.00016208,2]
[369657750,1751682639267,-500.0,0.00016208,2]
[369657751,1751682639276,-500.0,0.00016208,2]
[369657752,1751682639286,-457.04875041,0.00016208,2]
[369657753,1751682639295,-3615.08089933,0.00016209,2]
[369657754,1751682639305,-340.24830245,0.00017617,2]
[369657755,1751682639315,-308.0,0.00017717,2]
[369657756,1751682639324,-340.24830239,0.00018578,2]
[369657757,1751682639334,-1018.7545407,0.000189,2]
[369657758,1751682639343,-1298.67792362,0.000189,2]
[369657759,1751682639352,-1184.43829464,0.00019,2]
[369657760,1751682639361,-158.48969539,0.00019,20]
[369657761,1751682639370,-14.38595473,0.00019016,2]
[369657762,1751682639380,-1200.0,0.00019177,2]
[369657763,1751682639389,-848.02350475,0.00019178,2]
[369657764,1751682639399,-230.42616721,0.00019178,2]
[369657765,1751682639408,-837.5764301,0.00019178,2]
[369657766,1751682639417,-9217.04043119,0.00019178,2]
[369657767,1751682639427,-460.0,0.00019178,2]
[369657768,1751682639436,-460.0,0.00019178,2]
[369657769,1751682639445,-460.0,0.00019178,2]
[369657770,1751682639455,-299.65,0.00019178,2]
[369657771,1751682639464,-2893.04,0.00019178,2]
[369657772,1751682639473,-2893.04,0.00019178,2]
[369657773,1751682639482,-2893.04,0.00019178,2]
[369657774,1751682639491,-2893.04,0.00019178,2]
[369657775,1751682639501,-460.0,0.00019178,2]
[369657776,1751682639511,-591.48676512,0.00019178,2]
[369657777,1751682639520,-460.0,0.00019178,2]
[369657778,1751682639529,-460.0,0.00019178,2]
[369657779,1751682639538,-178.20066277,0.00019178,2]
[369657780,1751682639548,-521.86,0.00019178,2]
[369657781,1751682639557,-460.0,0.00019178,2]
[369657782,1751682639565,-461.50118371,0.00019178,2]
[369657783,1751682639575,-460.0,0.00019178,2]
[369657784,1751682639585,-460.0,0.00019178,2]
[369657785,1751682639594,-325.41,0.00019178,2]
[369657786,1751682639603,-362.7499811,0.00019178,2]
[369657787,1751682639613,-460.0,0.00019178,2]
[369657788,1751682639623,-529.83,0.00019178,2]
[369657789,1751682639632,-178.136969,0.00019178,2]
[369657790,1751682639642,-460.0,0.00019451,2]
[369657791,1751682639652,-460.0,0.00019451,2]
[369657792,1751682639661,-463.86,0.00019451,2]
[369657793,1751682639671,-460.0,0.00019451,2]
[369657794,1751682639684,-460.0,0.00019451,2]
[369657795,1751682639693,-151.05340182,0.00019451,2]
[369657796,1751682639703,-548.98,0.00019451,2]
[369657797,1751682639713,-460.0,0.00019451,2]
[369657798,1751682639722,-460.0,0.00019451,2]
[369657799,1751682639731,-460.0,0.00019451,2]
[369657800,1751682639741,-267.58982598,0.00019452,2]
[369657801,1751682639751,-460.0,0.00019452,2]
[369657802,1751682639761,-465.11104434,0.00019452,2]
[369657803,1751682639771,-214.55,0.00019452,2]
[369657804,1751682639780,-460.0,0.00019452,2]
[369657805,1751682639790,-460.0,0.00019452,2]
[369657806,1751682639799,-460.0,0.00019452,2]
[369657807,1751682639808,-460.0,0.00019452,2]
[369657808,1751682639818,-460.0,0.00019452,2]
[369657809,1751682639828,-521.86,0.00019452,2]
[369657810,1751682639838,-460.0,0.00019452,2]
[369657811,1751682639848,-460.0,0.00019452,2]
[369657812,1751682639858,-460.0,0.00019452,2]
[369657813,1751682639867,-460.0,0.00019452,2]
[369657814,1751682639877,-529.83,0.00019452,2]
[369657815,1751682639887,-340.24830239,0.00019539,2]
[369657816,1751682639897,-1018.75454067,0.00019629,2]
[369657817,1751682639906,-226.10638621,0.00019725,2]
[369657818,1751682639915,-409.23092991,0.00019725,2]
[369657819,1751682639925,-2893.04,0.00019725,2]
[369657820,1751682639935,-463.86,0.00019725,2]
[369657821,1751682639945,-460.0,0.00019725,2]
[369657822,1751682639954,-460.0,0.00019725,2]
[369657823,1751682640104,-548.98,0.00019725,2]
[369657824,1751682640115,-460.0,0.00019725,2]
[369657825,1751682640125,-407.02,0.00019725,2]
[369657826,1751682640135,-460.0,0.00019725,2]
[369657827,1751682640145,-198.48654981,0.00019726,2]
[369657828,1751682640155,-460.0,0.00019726,2]
[369657829,1751682640165,-460.0,0.00019726,2]
[369657830,1751682640174,-460.0,0.00019726,2]
[369657831,1751682640183,-157.94507581,0.00019726,2]
[369657832,1751682640193,-460.0,0.00019726,2]
[369657833,1751682640202,-521.86,0.00019726,2]
[369657834,1751682640212,-460.0,0.00019726,2]
[369657835,1751682640221,-460.0,0.00019726,2]
[369657837,1751682640230,-460.0,0.00019726,2]
[369657839,1751682640240,-460.0,0.00019726,2]
[369657840,1751682640249,-209.0,0.00019726,3]
[369657841,1751682640258,-604.37712967,0.000199,2]
[369657842,1751682640268,-538.80776286,0.000199,2]
[369657843,1751682640277,-500.0,0.000199,2]
[369657844,1751682640287,-500.0,0.000199,2]
[369657845,1751682640296,-500.0,0.000199,2]
[369657846,1751682640305,-492.07912366,0.000199,2]
[369657848,1751682640315,-500.0,0.000199,2]
[369657849,1751682640325,-500.0,0.000199,2]
[369657850,1751682640334,-463.86,0.00019999,2]
[369657851,1751682640343,-460.0,0.00019999,2]
[369657852,1751682640353,-460.0,0.00019999,2]
[369657853,1751682640362,-548.98,0.00019999,2]
[369657854,1751682640372,-569.54,0.00019999,2]
[369657855,1751682640381,-515.10988027,0.00019999,2]
[369657856,1751682640391,-150.0,0.0002,2]
[369657857,1751682640401,-151.0,0.0002,2]
[369657858,1751682640410,-460.0,0.0002,2]
[369657859,1751682640420,-460.0,0.0002,2]
[369657860,1751682640429,-449.20304949,0.0002,2]
[369657861,1751682640439,-521.86,0.0002,2]
[369657862,1751682640449,-460.0,0.0002,2]
[369657863,1751682640459,-663.93109973,0.0002,2]
[369657864,1751682640468,-10799.23887918,0.0002,2]
[369657865,1751682640478,-6896.80046725,0.0002,2]
[369657866,1751682640487,-20000.84345984,0.0002,2]
[369657867,1751682640496,-460.0,0.0002,2]
[369657869,1751682640505,-460.0,0.0002,2]
[369657871,1751682640515,-200.726,0.00020038,2]
[369657873,1751682640524,-604.37712957,0.00020107,2]
[369657875,1751682640534,-151.0,0.000202,3]
[369657877,1751682640543,-2893.04,0.00020272,2]
[369657879,1751682640552,-460.0,0.00020273,2]
[369657881,1751682640562,-463.86,0.00020273,2]
[369657883,1751682640571,-460.0,0.00020273,2]
[369657885,1751682640581,-294.75747235,0.00020273,2]
[369657887,1751682640590,-460.0,0.00020273,2]
[369657889,1751682640599,-521.86,0.00020273,2]
[369657891,1751682640609,-460.0,0.00020273,2]
[369657893,1751682640618,-548.98,0.00020273,2]
[369657895,1751682640628,-460.0,0.00020273,2]
[369657897,1751682640637,-460.0,0.00020273,2]
[369657899,1751682640647,-604.37712957,0.00020314,3]
[369657901,1751682640656,-192.0171822,0.00020336,2]
[369657903,1751682640666,-1018.75454067,0.00020359,2]
[369657905,1751682640678,-503.92640228,0.00020448,2]
[369657907,1751682640687,-501.97210893,0.00020448,2]
[369657909,1751682640697,-500.66688924,0.00020448,2]
[369657911,1751682640706,-1000.0,0.00020448,2]
[369657913,1751682640715,-500.54694756,0.00020448,2]
[369657915,1751682640724,-340.24830239,0.000205,2]
[369657917,1751682640734,-604.37712957,0.00020521,3]
[369657919,1751682640743,-460.0,0.00020547,2]
[369657921,1751682640754,-463.86,0.00020547,2]
[369657923,1751682640764,-460.0,0.00020547,2]
[369657925,1751682640773,-460.0,0.00020547,2]
[369657927,1751682640783,-521.86,0.00020547,2]
[369657929,1751682640792,-460.0,0.00020547,2]
[369657931,1751682640802,-548.98,0.00020547,2]
[369657933,1751682640812,-460.0,0.00020547,2]
[369657935,1751682640821,-460.0,0.00020547,2]
[369657937,1751682640830,-1875.35,0.0002071,20]
[369657939,1751682640839,-604.37712957,0.00020728,3]
[369657941,1751682640849,-460.0,0.00020821,2]
[369657943,1751682640858,-463.86,0.00020821,2]
[369657945,1751682640868,-388.53931888,0.00020821,2]
[369657947,1751682640877,-452.13176008,0.00020821,2]
[369657949,1751682640887,-521.86,0.00020821,2]
[369657951,1751682640897,-460.0,0.00020821,2]
[369657952,1751682640906,-548.98,0.00020821,2]
[369657953,1751682640916,-460.0,0.00020821,2]
[369657954,1751682640925,-460.0,0.00020821,2]
[369657955,1751682640934,-300.0,0.00020874,2]
[369657956,1751682640943,-2893.04,0.00020909,2]
[369657958,1751682640952,-151.0,0.0002091,2]
[369657959,1751682640961,-257.054437,0.0002091,2]
[369657960,1751682640970,-151.0,0.0002091,2]
[369657961,1751682640979,-151.0,0.0002091,2]
[369657962,1751682640988,-151.0,0.0002091,2]
[369657963,1751682640997,-151.0,0.0002091,2]
[369657964,1751682641006,-151.0,0.0002091,2]
[369657965,1751682641015,-604.37712957,0.00020934,4]
[369657966,1751682641024,-2893.04,0.00020993,2]
[369657967,1751682641034,-2893.04,0.00020993,2]
[369657968,1751682641043,-1500.0,0.00020996,2]
[369657969,1751682641052,-269.47760942,0.00021,2]
[369657970,1751682641062,-29688.15502069,0.00021,2]
[369657971,1751682641071,-5308.13180778,0.00021,2]
[369657972,1751682641080,-201.57253572,0.00021,2]
[369657973,1751682641090,-1018.75454067,0.00021088,2]
[369657974,1751682641099,-460.0,0.00021095,2]
[369657975,1751682641108,-463.86,0.00021095,2]
[369657976,1751682641117,-521.86,0.00021095,2]
[369657977,1751682641126,-460.0,0.00021095,2]
[369657978,1751682641136,-548.98,0.00021095,2]
[369657979,1751682641145,-460.0,0.00021095,2]
[369657980,1751682641154,-460.0,0.00021095,2]
[369657981,1751682641164,-604.37712957,0.00021141,4]
[369657982,1751682641173,-160.98598009,0.0002125,5]
[369657983,1751682641182,-228.52863706,0.00021275,2]
[369657984,1751682641191,-500.0,0.00021275,2]
[369657985,1751682641201,-352.21971882,0.00021275,2]
[369657986,1751682641210,-218.01164321,0.00021275,2]
[369657987,1751682641219,-500.0,0.00021275,2]
[369657988,1751682641228,-373.24086227,0.00021275,2]
[369657989,1751682641237,-2893.04,0.00021275,2]
[369657990,1751682641247,-2893.04,0.00021275,2]
[369657991,1751682641256,-702.6358805,0.00021276,2]
[369657992,1751682641265,-500.0,0.00021276,2]
[369657993,1751682641275,-216.69717772,0.00021276,2]
[369657994,1751682641285,-207.4,0.00021276,2]
[369657995,1751682641294,-500.0,0.00021276,2]
[369657996,1751682641303,-500.0,0.00021276,2]
[369657997,1751682641312,-500.0,0.00021276,2]
[369657998,1751682641321,-500.0,0.00021276,2]
[369657999,1751682641331,-5000.0,0.00021276,2]
[369658000,1751682641340,-500.0,0.00021276,2]
[369658001,1751682641350,-500.0,0.00021276,2]
[369658002,1751682641359,-1365.64456465,0.00021276,2]
[369658003,1751682641368,-500.0,0.00021276,2]
[369658004,1751682641378,-500.0,0.00021276,2]
[369658005,1751682641387,-500.0,0.00021276,2]
[369658006,1751682641396,-500.0,0.00021276,2]
[369658007,1751682641406,-500.0,0.00021276,2]
[369658008,1751682641415,-25000.0,0.00021276,2]
[369658009,1751682641424,-17259.76334063,0.00021276,2]
[369658010,1751682641433,-151.0,0.00021276,2]
[369658011,1751682641442,-151.0,0.00021276,2]
[369658012,1751682641451,-179.10898,0.00021276,2]
[369658013,1751682641461,-151.0,0.00021276,2]
[369658014,1751682641470,-151.0,0.00021276,2]
[369658015,1751682641484,-151.0,0.00021276,2]
[369658016,1751682641495,-166.666666,0.00021338,2]
[369658017,1751682641504,-604.37712957,0.00021348,5]
[369658018,1751682641513,-460.0,0.00021369,2]
[369658019,1751682641522,-463.86,0.00021369,2]
[369658020,1751682641531,-521.86,0.00021369,2]
[369658021,1751682641541,-460.0,0.00021369,2]
[369658022,1751682641550,-548.98,0.00021369,2]
[369658023,1751682641560,-435.57254663,0.00021369,2]
[369658024,1751682641569,-460.0,0.00021369,2]
[369658025,1751682641578,-60551.5240894,0.00021389,5]
[369658026,1751682641587,-151.0,0.000214,3]
[369658027,1751682641596,-340.24830239,0.00021461,2]
[369658028,1751682641605,-10111.74810098,0.000215,2]
[369658029,1751682641614,-166.666666,0.00021507,2]
[369658030,1751682641624,-2000.0,0.00021544,2]
[369658031,1751682641633,-604.37712957,0.00021555,5]
[369658032,1751682641642,-2893.04,0.00021642,2]
[369658033,1751682641651,-406.71414194,0.00021643,2]
[369658034,1751682641660,-2893.04,0.00021643,2]
[369658035,1751682641670,-2893.04,0.00021643,2]
[369658036,1751682641682,-463.86,0.00021643,2]
[369658037,1751682641691,-521.86,0.00021643,2]
[369658038,1751682641701,-541.24446437,0.00021643,2]
[369658039,1751682641710,-548.98,0.00021643,2]
[369658040,1751682641719,-460.0,0.00021643,2]
[369658041,1751682641728,-5000.0,0.00021644,2]
[369658042,1751682641737,-5000.0,0.00021644,2]
[369658043,1751682641747,-5000.0,0.00021644,2]
[369658044,1751682641756,-5000.0,0.00021644,2]
[369658045,1751682641767,-5000.0,0.00021644,2]
[369658046,1751682641776,-5000.0,0.00021644,2]
[369658047,1751682641786,-5000.0,0.00021644,2]
[369658048,1751682641795,-5000.0,0.00021644,2]
[369658049,1751682641805,-5000.0,0.00021644,2]
[369658050,1751682641814,-5000.0,0.00021644,2]
[369658051,1751682641823,-5000.0,0.00021644,2]
[369658052,1751682641832,-4852.74565,0.00021644,2]
[369658053,1751682641841,-2893.04,0.00021665,2]
[369658054,1751682641851,-166.666666,0.00021675,2]
[369658055,1751682641860,-209.76808033,0.00021699,2]
[369658056,1751682641869,-209.76808033,0.00021699,2]
[369658057,1751682641878,-604.37712957,0.00021762,5]
[369658058,1751682641888,-1018.75454067,0.00021817,2]
[369658059,1751682641897,-137243.24979848,0.00021823,4]
[369658060,1751682643792,-20.61666593,0.00019178,2]
[369658061,1751682643803,-139.38333407,0.00019178,2]
[369658062,1751682643814,-529.83,0.00019726,2]
[369658063,1751682643823,-529.83,0.0002,2]
[369658064,1751682643833,-529.83,0.00020273,2]
[369658065,1751682643843,-529.83,0.00020547,2]
[369658066,1751682643852,-529.83,0.00020821,2]
[369658067,1751682643861,-3903.13462202,0.000209,2]
[369658070,1751682647427,-1505.75540697,0.000209,2]
[369658071,1751682647438,-787.5,0.000209,2]
[369658072,1751682647450,-2952.45936885,0.000209,2]
[369658073,1751682647462,-472.95933375,0.000209,2]
[369658074,1751682647474,-351.59094771,0.000209,2]
[369658083,1751682885180,167.191999,0.00013699,2]
[369658088,1751683027837,1073.520689,0.00019112,120]
[369658091,1751683162289,-156.0,0.00016438,3]
[369658092,1751683162310,-837.5764301,0.00018993,2]
[369658093,1751683162336,-230.42616721,0.00018993,2]
[369658094,1751683162363,-160.0,0.00018993,2]
[369658095,1751683162391,-460.0,0.00019178,2]
[369658096,1751683162416,-460.0,0.00019178,2]
[369658097,1751683162441,-460.0,0.00019178,2]
[369658098,1751683162464,-460.0,0.00019178,2]
[369658099,1751683162489,-460.0,0.00019178,2]
[369658100,1751683162515,-460.0,0.00019178,2]
[369658101,1751683162540,-462.65354531,0.00019178,2]
[369658102,1751683162567,-2049.24,0.00019178,2]
[369658103,1751683162593,-460.0,0.00019178,2]
[369658104,1751683162617,-604.27,0.00019178,2]
[369658105,1751683162643,-522.85,0.00019178,2]
[369658106,1751683162666,-460.0,0.00019178,2]
[369658107,1751683162692,-460.0,0.00019178,2]
[369658108,1751683162716,-460.0,0.00019178,2]
[369658109,1751683162740,-460.0,0.00019178,2]
[369658110,1751683162762,-460.0,0.00019178,2]
[369658111,1751683162785,-460.0,0.00019178,2]
[369658112,1751683162809,-460.0,0.00019178,2]
[369658113,1751683162834,-460.0,0.00019178,2]
[369658114,1751683162859,-514.45,0.00019178,2]
[369658115,1751683162884,-460.0,0.00019178,2]
[369658116,1751683162909,-460.0,0.00019178,2]
[369658117,1751683162937,-543.73,0.00019178,2]
[369658118,1751683162960,-460.0,0.00019178,2]
[369658119,1751683162981,-231.8461699,0.00019323,2]
[369658120,1751683163003,-2049.24,0.00019451,2]
[369658121,1751683163030,-460.0,0.00019451,2]
[369658122,1751683163060,-460.0,0.00019451,2]
[369658123,1751683163085,-460.0,0.00019451,2]
[369658124,1751683163107,-460.0,0.00019451,2]
[369658125,1751683163133,-460.0,0.00019451,2]
[369658126,1751683163159,-174.03,0.00019452,2]
[369658127,1751683163186,-460.0,0.00019452,2]
[369658128,1751683163209,-392.93,0.00019452,2]
[369658129,1751683163232,-460.0,0.00019452,2]
[369658130,1751683163255,-305.67,0.00019452,2]
[369658131,1751683163280,-460.0,0.00019452,2]
[369658132,1751683163303,-460.0,0.00019452,2]
[369658133,1751683163327,-550.51,0.00019452,2]
[369658134,1751683163351,-460.0,0.00019452,2]
[369658135,1751683163374,-194.51,0.00019452,2]
[369658136,1751683163396,-865.78528241,0.00019723,2]
[369658137,1751683163421,-460.0,0.00019725,2]
[369658138,1751683163445,-307.68865065,0.00019725,2]
[369658139,1751683163470,-460.0,0.00019725,2]
[369658140,1751683163494,-460.0,0.00019725,2]
[369658141,1751683163519,-460.0,0.00019726,2]
[369658142,1751683163544,-460.0,0.00019726,2]
[369658143,1751683163568,-460.0,0.00019726,2]
[369658144,1751683163593,-460.0,0.00019726,2]
[369658145,1751683163618,-2049.24,0.00019899,2]
[369658146,1751683163642,-170.12415123,0.000199,2]
[369658147,1751683163667,-460.0,0.00019998,2]
[369658148,1751683163690,-460.0,0.00019998,2]
[369658149,1751683163715,-672.21,0.00019998,2]
[369658150,1751683163740,-460.0,0.00019998,2]
[369658151,1751683163764,-460.0,0.00019998,2]
[369658152,1751683163789,-460.0,0.00019998,2]
[369658153,1751683163813,-468.83,0.00019998,2]
[369658154,1751683163839,-460.0,0.00019999,2]
[369658155,1751683163864,-460.0,0.00019999,2]
[369658156,1751683164084,-460.0,0.00019999,2]
[369658157,1751683164107,-460.0,0.0002,2]
[369658158,1751683164129,-460.0,0.0002,2]
[369658159,1751683164150,-234.23,0.0002,2]
[369658160,1751683164171,-242.95960319,0.0002,2]
[369658164,1751683245441,-5000.0,0.00018986,2]
[369658165,1751683245463,-230.42616721,0.00019055,2]
[369658166,1751683245485,-460.0,0.00019178,2]
[369658167,1751683245508,-460.0,0.00019178,2]
[369658168,1751683245530,-460.0,0.00019178,2]
[369658169,1751683245563,-460.0,0.00019178,2]
[369658170,1751683245588,-460.0,0.00019451,2]
[369658171,1751683245613,-460.0,0.00019452,2]
[369658172,1751683245637,-460.0,0.00019452,2]
[369658173,1751683245659,-577.19018827,0.00019723,2]
[369658174,1751683245681,-460.0,0.00019725,2]
[369658175,1751683245704,-460.0,0.00019726,2]
[369658176,1751683245725,-460.0,0.00019726,2]
[369658177,1751683245748,-460.0,0.00019998,2]
[369658178,1751683245769,-460.0,0.00019998,2]
[369658179,1751683245792,-460.0,0.00019998,2]
[369658180,1751683245814,-300.0,0.00019999,2]
[369658181,1751683245836,-460.0,0.00019999,2]